lending/lending_fUSD_20250719
["ID","MTS","AMOUNT","RATE_DAILY","PERIOD"]
[373188567,1752899432729,-13591.0,0.00017893,2]
[373188569,1752899432739,-550.0,0.00017895,2]
[373188571,1752899432749,-7142.856,0.00017896,2]
[373188572,1752899432759,-359.76179104,0.00017896,2]
[373188573,1752899432769,-151.0,0.00017896,2]
[373188574,1752899432778,-207.4,0.00017896,2]
[373188575,1752899432788,-213.96859442,0.00017896,2]
[373188576,1752899432798,-156.91399371,0.00017896,2]
[373188577,1752899432808,-169.21,0.00017899,2]
[373188578,1752899432818,-5399.72,0.00017899,2]
[373188579,1752899432827,-1000.0,0.00017938,2]
[373188580,1752899432837,-5405.76762686,0.00017951,2]
[373188581,1752899432846,-165.91,0.00017986,2]
[373188582,1752899432856,-150.0,0.0001806,2]
[373188583,1752899432865,-150.0,0.00018146,2]
[373188584,1752899432875,-1659.98511411,0.00018151,2]
[373188585,1752899432884,-1659.9851141,0.00018151,2]
[373188586,1752899432896,-645.21,0.00018169,2]
[373188587,1752899432905,-6627.29363178,0.00018223,2]
[373188588,1752899432915,-5139.51,0.00018233,2]
[373188589,1752899432924,-1000.0,0.00018233,2]
[373188590,1752899432933,-1493.76,0.00018248,2]
[373188591,1752899432942,-250.65,0.00018329,2]
[373188592,1752899432952,-6331.19361157,0.00018356,2]
[373188593,1752899432965,-17884.40638843,0.00018356,2]
[373188594,1752899432974,-256.62,0.00018359,2]
[373188595,1752899432984,-501.0,0.00018404,4]
[373188596,1752899432994,-250.0,0.00018485,2]
[373188597,1752899433003,-300.0,0.00018485,2]
[373188598,1752899433013,-457.9,0.00018508,2]
[373188599,1752899433022,-150.0,0.00018508,2]
[373188600,1752899433032,-150.0,0.0001851,2]
[373188601,1752899433042,-150.0,0.00018678,2]
[373188602,1752899433051,-150.0,0.00018678,2]
[373188603,1752899433061,-300.0,0.000187,6]
[373188604,1752899433071,-150.0,0.00018725,2]
[373188605,1752899433081,-150.0,0.0001878,2]
[373188606,1752899433090,-150.0,0.00018782,2]
[373188607,1752899433100,-167.21,0.00018794,2]
[373188608,1752899433110,-700.0,0.000188,6]
[373188609,1752899433119,-150.0,0.00018889,2]
[373188610,1752899433129,-1009.0,0.000189,2]
[373188611,1752899433138,-1000.0,0.000189,6]
[373188612,1752899433148,-8933.65,0.00018911,2]
[373188613,1752899433158,-3848.0,0.00018942,2]
[373188614,1752899433167,-150.0,0.00018987,2]
[373188615,1752899433177,-300.0,0.00018987,2]
[373188616,1752899433187,-216.32950077,0.00019,3]
[373188617,1752899433196,-11099.59876316,0.00019,2]
[373188618,1752899433206,-1000.0,0.00019,2]
[373188619,1752899433215,-2500.0,0.00019,2]
[373188620,1752899433225,-250.65,0.00019016,2]
[373188621,1752899433235,-3142.268,0.0001902,2]
[373188622,1752899433245,-170.601,0.0001902,2]
[373188623,1752899433255,-355.0,0.00019068,2]
[373188624,1752899433265,-250.98552756,0.00019078,2]
[373188625,1752899433275,-3739.63400058,0.00019078,2]
[373188626,1752899433286,-157.61757829,0.00019078,2]
[373188627,1752899433296,-1917.26393853,0.00019078,2]
[373188628,1752899433305,-355.0,0.00019081,2]
[373188629,1752899433315,-1000.0,0.00019087,2]
[373188630,1752899433325,-1917.26393852,0.00019089,2]
[373188631,1752899433335,-180.42,0.0001909,2]
[373188632,1752899433345,-180.42,0.0001909,2]
[373188633,1752899433354,-2500.0,0.00019096,2]
[373188634,1752899433364,-476.77674259,0.00019096,2]
[373188635,1752899433373,-527.24995878,0.00019099,2]
[373188636,1752899433382,-2000.0,0.00019099,2]
[373188637,1752899433392,-1917.26393852,0.00019099,2]
[373188638,1752899433401,-97436.8888,0.000191,2]
[373188639,1752899433411,-17867.3,0.000191,2]
[373188640,1752899433421,-150.0,0.00019128,2]
[373188641,1752899433431,-408.74209246,0.00019129,2]
[373188642,1752899433440,-180.42,0.0001914,2]
[373188643,1752899433450,-1000.0,0.0001915,2]
[373188644,1752899433467,-1000.0,0.0001915,2]
[373188645,1752899433478,-1000.0,0.0001915,2]
[373188646,1752899433488,-1000.0,0.0001915,2]
[373188647,1752899433497,-1000.0,0.0001915,2]
[373188648,1752899433508,-1000.0,0.0001915,2]
[373188649,1752899433518,-1000.0,0.0001915,2]
[373188650,1752899433527,-1000.0,0.0001915,2]
[373188651,1752899433538,-1000.0,0.0001915,2]
[373188652,1752899433546,-1000.0,0.0001915,2]
[373188653,1752899433556,-1243.0,0.00019158,2]
[373188654,1752899433566,-180.42,0.00019167,2]
[373188655,1752899433576,-180.42,0.00019167,2]
[373188656,1752899433585,-408.74209246,0.00019174,2]
[373188657,1752899433595,-121927.66612307,0.00019177,2]
[373188658,1752899433919,-1166.5837796,0.00019177,2]
[373188659,1752899433931,-7343.35147157,0.00019177,2]
[373188660,1752899433950,-2336.0,0.00019177,2]
[373188661,1752899433961,-1565.83481512,0.00019177,2]
[373188662,1752899433970,-785.82346352,0.00019178,2]
[373188663,1752899434001,-125740.77290814,0.00019178,2]
[373188664,1752899434017,-1600.0,0.00019178,2]
[373188665,1752899434028,-3372.4453635,0.00019178,2]
[373188666,1752899434041,-2945.57946888,0.00019178,2]
[373188667,1752899438233,-255.86084082,0.00019099,2]
[373188668,1752899438246,-123.98034448,0.00019099,2]
[373188669,1752899438259,-329.97364007,0.00019099,2]
[373188670,1752899438269,-6.69286367,0.00019178,2]
[373188671,1752899438282,-3015.27083348,0.00019178,2]
[373188672,1752899438295,-261.92,0.00019178,2]
[373188673,1752899438344,-430.32166601,0.00019178,2]
[373188674,1752899438355,-23348.54136832,0.00019178,2]
[373188675,1752899438507,-454.91378637,0.00019178,2]
[373188859,1752899440644,-8644.5196438,0.00019178,2]
[373188862,1752899440656,-446.8537813,0.00019178,2]
[373188878,1752899440810,-56238.58629857,0.00019178,2]
[373189167,1752899443584,-150.0,0.000175,2]
[373189169,1752899443594,-150.0,0.0001878,2]
[373189171,1752899443604,-3743.11795498,0.00019178,2]
[373189176,1752899443639,-351.4240169,0.00019178,2]
[373189188,1752899443749,-581.2624616,0.00019178,2]
[373189235,1752899444202,-1269.81111015,0.00019178,2]
[373189237,1752899444216,-67839.29527198,0.00019178,2]
[373189240,1752899444231,-66879.12536027,0.00019178,2]
[373189246,1752899444270,-2734.9,0.00019178,2]
[373189248,1752899444283,-190873.10993224,0.00019178,2]
[373189250,1752899444292,-16750.39117483,0.00019178,2]
[373189252,1752899444303,-967.385039,0.00019178,2]
[373189254,1752899444312,-1080.97590703,0.00019178,2]
[373189256,1752899444321,-200.0,0.00019178,2]
[373189258,1752899444331,-150.0,0.00019178,2]
[373189260,1752899444341,-150.0,0.00019178,2]
[373189263,1752899444350,-150.0,0.00019178,2]
[373189265,1752899444359,-150.15367149,0.00019178,2]
[373189267,1752899444368,-150.64057849,0.00019178,2]
[373189269,1752899444378,-500.0,0.00019178,2]
[373189271,1752899444387,-150.0,0.00019178,2]
[373189273,1752899444397,-150.0,0.00019178,2]
[373189275,1752899444406,-150.0,0.00019178,2]
[373189277,1752899444416,-150.0,0.00019178,2]
[373189279,1752899444426,-150.0,0.00019178,2]
[373189281,1752899444435,-150.0,0.00019178,2]
[373189283,1752899444445,-500.0,0.00019178,2]
[373189285,1752899444454,-480.0,0.00019178,2]
[373189287,1752899444463,-480.0,0.00019178,2]
[373189289,1752899444472,-200.0,0.00019178,2]
[373189291,1752899444481,-480.0,0.00019178,2]
[373189293,1752899444491,-1667.17,0.00019178,2]
[373189295,1752899444500,-411.85380019,0.00019178,2]
[373189297,1752899444510,-480.0,0.00019178,2]
[373189298,1752899444520,-152.53926398,0.00019178,2]
[373189300,1752899444529,-480.0,0.00019178,2]
[373189302,1752899444539,-480.0,0.00019178,2]
[373189304,1752899444550,-150.70384672,0.00019178,2]
[373189306,1752899444559,-200.22628116,0.00019178,2]
[373189308,1752899444568,-480.0,0.00019178,2]
[373189310,1752899444578,-480.0,0.00019178,2]
[373189311,1752899444587,-480.0,0.00019178,2]
[373189313,1752899444596,-480.0,0.00019178,2]
[373189316,1752899444606,-290.50636651,0.00019178,2]
[373189317,1752899444617,-480.0,0.00019178,2]
[373189319,1752899444626,-480.0,0.00019178,2]
[373189322,1752899444636,-480.0,0.00019178,2]
[373189324,1752899444646,-419.40338135,0.00019178,2]
[373189326,1752899444655,-480.0,0.00019178,2]
[373189328,1752899444664,-480.0,0.00019178,2]
[373189330,1752899444673,-480.0,0.00019178,2]
[373189331,1752899444682,-480.0,0.00019178,2]
[373189334,1752899444691,-480.0,0.00019178,2]
[373189335,1752899444700,-150.0,0.00019178,2]
[373189337,1752899444710,-480.0,0.00019178,2]
[373189339,1752899444720,-480.0,0.00019178,2]
[373189341,1752899444729,-480.0,0.00019178,2]
[373189343,1752899444739,-480.0,0.00019178,2]
[373189345,1752899444748,-480.0,0.00019178,2]
[373189347,1752899444757,-480.0,0.00019178,2]
[373189349,1752899444766,-151.0,0.00019178,2]
[373189351,1752899444775,-323.81325804,0.00019178,2]
[373189353,1752899444784,-526.25936891,0.00019178,2]
[373189355,1752899444793,-480.0,0.00019178,2]
[373189357,1752899444804,-480.0,0.00019178,2]
[373189359,1752899444813,-480.0,0.00019178,2]
[373189361,1752899444823,-480.0,0.00019178,2]
[373189363,1752899444832,-480.0,0.00019178,2]
[373189365,1752899444840,-480.0,0.00019178,2]
[373189367,1752899444850,-450.86615197,0.00019178,2]
[373189369,1752899444859,-480.0,0.00019178,2]
[373189371,1752899444869,-480.0,0.00019178,2]
[373189373,1752899444879,-151.0,0.00019178,2]
[373189375,1752899444888,-151.0,0.00019178,2]
[373189377,1752899444899,-151.0,0.00019178,2]
[373189379,1752899444919,-480.0,0.00019178,2]
[373189381,1752899444933,-480.0,0.00019178,2]
[373189383,1752899444942,-480.0,0.00019178,2]
[373189385,1752899444951,-151.0,0.00019178,2]
[373189387,1752899444960,-480.0,0.00019178,2]
[373189389,1752899444974,-480.0,0.00019178,2]
[373189391,1752899444986,-480.0,0.00019178,2]
[373189393,1752899444996,-1134.86,0.00019178,2]
[373189395,1752899445006,-480.0,0.00019178,2]
[373189397,1752899445015,-480.0,0.00019178,2]
[373189399,1752899445024,-164.75403475,0.00019178,2]
[373189401,1752899445033,-480.0,0.00019178,2]
[373189403,1752899445042,-480.0,0.00019178,2]
[373189405,1752899445053,-480.0,0.00019178,2]
[373189407,1752899445062,-151.0,0.00019178,2]
[373189409,1752899445071,-480.0,0.00019178,2]
[373189411,1752899445081,-150.0,0.00019178,2]
[373189413,1752899445090,-487.98,0.00019178,2]
[373189415,1752899445101,-480.0,0.00019178,2]
[373189417,1752899445112,-151.0,0.00019178,2]
[373189419,1752899445121,-1007.98,0.00019178,2]
[373189421,1752899445130,-480.0,0.00019178,2]
[373189423,1752899445141,-500.0,0.00019178,2]
[373189425,1752899445152,-150.0,0.00019178,2]
[373189427,1752899445161,-150.0,0.00019178,2]
[373189429,1752899445171,-480.0,0.00019178,2]
[373189431,1752899445180,-480.0,0.00019178,2]
[373189433,1752899445191,-480.0,0.00019178,2]
[373189435,1752899445200,-925.23,0.00019178,2]
[373189437,1752899445210,-635.47,0.00019178,2]
[373189439,1752899445220,-151.0,0.00019178,2]
[373189441,1752899445229,-480.0,0.00019178,2]
[373189443,1752899445240,-200.0,0.00019178,2]
[373189445,1752899445249,-9427.14,0.00019178,2]
[373189447,1752899445259,-480.0,0.00019178,2]
[373189449,1752899445268,-480.0,0.00019178,2]
[373189451,1752899445277,-1359.03,0.00019178,2]
[373189453,1752899445286,-480.0,0.00019178,2]
[373189456,1752899445297,-480.0,0.00019178,2]
[373189457,1752899445306,-1428.21,0.00019178,2]
[373189460,1752899445316,-877.57,0.00019178,2]
[373189462,1752899445325,-480.0,0.00019178,2]
[373189463,1752899445336,-480.0,0.00019178,2]
[373189465,1752899445345,-480.0,0.00019178,2]
[373189467,1752899445354,-480.0,0.00019178,2]
[373189469,1752899445363,-676.0,0.00019178,2]
[373189471,1752899445373,-514.81,0.00019178,2]
[373189473,1752899445382,-480.0,0.00019178,2]
[373189475,1752899445391,-480.0,0.00019178,2]
[373189477,1752899445400,-480.0,0.00019178,2]
[373189479,1752899445410,-542.07,0.00019178,2]
[373189481,1752899445420,-151.0,0.00019178,2]
[373189483,1752899445430,-480.0,0.00019178,2]
[373189485,1752899445440,-480.0,0.00019178,2]
[373189487,1752899445449,-498.00511495,0.00019178,2]
[373189490,1752899445458,-480.0,0.00019178,2]
[373189492,1752899445468,-480.0,0.00019178,2]
[373189494,1752899445477,-565.84,0.00019178,2]
[373189496,1752899445487,-459.51198509,0.00019178,2]
[373189498,1752899445498,-486.44,0.00019178,2]
[373189500,1752899445507,-1052.04,0.00019178,2]
[373189502,1752899445517,-480.0,0.00019178,2]
[373189504,1752899445526,-480.0,0.00019178,2]
[373189505,1752899445535,-480.0,0.00019178,2]
[373189508,1752899445545,-480.0,0.00019178,2]
[373189510,1752899445555,-480.0,0.00019178,2]
[373189512,1752899445564,-480.0,0.00019178,2]
[373189513,1752899445574,-151.0,0.00019178,2]
[373189516,1752899445584,-480.43,0.00019178,2]
[373189518,1752899445594,-1198.72,0.00019178,2]
[373189519,1752899445603,-480.0,0.00019178,2]
[373189521,1752899445612,-480.0,0.00019178,2]
[373189523,1752899445622,-580.25,0.00019178,2]
[373189525,1752899445631,-500.0,0.00019178,2]
[373189527,1752899445641,-2572.92699,0.00019178,2]
[373189529,1752899445650,-508.31,0.00019178,2]
[373189531,1752899445659,-480.0,0.00019178,2]
[373189533,1752899445669,-480.0,0.00019178,2]
[373189535,1752899445678,-150.0,0.00019178,2]
[373189537,1752899445687,-480.0,0.00019178,2]
[373189539,1752899445696,-150.0,0.00019178,2]
[373189541,1752899445706,-541.04,0.00019178,2]
[373189543,1752899445715,-480.0,0.00019178,2]
[373189545,1752899445725,-778.78,0.00019178,2]
[373189547,1752899445734,-150.0,0.00019178,2]
[373189550,1752899445744,-480.0,0.00019178,2]
[373189552,1752899445753,-500.0,0.00019178,2]
[373189554,1752899445762,-788.01,0.00019178,2]
[373189556,1752899445771,-150.0,0.00019178,2]
[373189558,1752899445781,-150.0,0.00019178,2]
[373189560,1752899445790,-500.0,0.00019178,2]
[373189562,1752899445801,-500.0,0.00019178,2]
[373189564,1752899445810,-480.0,0.00019178,2]
[373189589,1752899446052,-480.0,0.00019178,2]
[373189591,1752899446061,-807.27,0.00019178,2]
[373189594,1752899446071,-151.0,0.00019178,2]
[373189595,1752899446081,-194.74500467,0.00019178,2]
[373189597,1752899446092,-1033.69,0.00019178,2]
[373189600,1752899446101,-480.0,0.00019178,2]
[373189601,1752899446111,-480.0,0.00019178,2]
[373189603,1752899446120,-150.0,0.00019178,2]
[373189605,1752899446130,-480.0,0.00019178,2]
[373189607,1752899446139,-2213.62,0.00019178,2]
[373189609,1752899446149,-480.0,0.00019178,2]
[373189612,1752899446159,-480.0,0.00019178,2]
[373189613,1752899446168,-480.0,0.00019178,2]
[373189616,1752899446178,-480.0,0.00019178,2]
[373189618,1752899446187,-480.0,0.00019178,2]
[373189619,1752899446196,-150.0,0.00019178,2]
[373189622,1752899446206,-150.0,0.00019178,2]
[373189624,1752899446215,-697.21,0.00019178,2]
[373189625,1752899446225,-496.11,0.00019178,2]
[373189628,1752899446234,-150.0,0.00019178,2]
[373189630,1752899446244,-150.0,0.00019178,2]
[373189631,1752899446253,-150.0,0.00019178,2]
[373189633,1752899446263,-150.0,0.00019178,2]
[373189635,1752899446272,-150.0,0.00019178,2]
[373189637,1752899446281,-480.0,0.00019178,2]
[373189638,1752899446290,-480.0,0.00019178,2]
[373189639,1752899446300,-532.39,0.00019178,2]
[373189640,1752899446309,-480.0,0.00019178,2]
[373189641,1752899446319,-3628.66,0.00019178,2]
[373189642,1752899446328,-1215.02,0.00019178,2]
[373189643,1752899446337,-1195.48,0.00019178,2]
[373189644,1752899446346,-480.0,0.00019178,2]
[373189645,1752899446355,-542.34806558,0.00019178,2]
[373189646,1752899446364,-480.0,0.00019178,2]
[373189647,1752899446373,-916.83,0.00019178,2]
[373189648,1752899446382,-615.76,0.00019178,2]
[373189649,1752899446392,-480.0,0.00019178,2]
[373189651,1752899446401,-480.0,0.00019178,2]
[373189653,1752899446411,-480.0,0.00019178,2]
[373189655,1752899446420,-551.74,0.00019178,2]
[373189657,1752899446429,-748.42,0.00019178,2]
[373189659,1752899446439,-480.0,0.00019178,2]
[373189661,1752899446448,-609.2,0.00019178,2]
[373189663,1752899446458,-480.0,0.00019178,2]
[373189665,1752899446468,-480.0,0.00019178,2]
[373189667,1752899446477,-480.0,0.00019178,2]
[373189669,1752899446487,-480.0,0.00019178,2]
[373189671,1752899446496,-1112.26,0.00019178,2]
[373189673,1752899446506,-480.0,0.00019178,2]
[373189675,1752899446516,-480.0,0.00019178,2]
[373189677,1752899446526,-480.0,0.00019178,2]
[373189679,1752899446535,-1889.02,0.00019178,2]
[373189681,1752899446544,-501.52,0.00019178,2]
[373189683,1752899446555,-480.0,0.00019178,2]
[373189685,1752899446566,-1001.14,0.00019178,2]
[373189687,1752899446575,-480.0,0.00019178,2]
[373189689,1752899446585,-480.0,0.00019178,2]
[373189691,1752899446594,-511.56,0.00019178,2]
[373189693,1752899446604,-166.732244,0.00019178,2]
[373189695,1752899446613,-166.732244,0.00019178,2]
[373189697,1752899446623,-480.0,0.00019178,2]
[373189699,1752899446632,-731.06,0.00019178,2]
[373189701,1752899446641,-480.0,0.00019178,2]
[373189703,1752899446650,-480.0,0.00019178,2]
[373189705,1752899446659,-213.44201,0.00019178,2]
[373189707,1752899446669,-480.0,0.00019178,2]
[373189709,1752899446679,-480.0,0.00019178,2]
[373189711,1752899446688,-480.0,0.00019178,2]
[373189713,1752899446699,-480.0,0.00019178,2]
[373189715,1752899446708,-213.44201,0.00019178,2]
[373189717,1752899446717,-480.0,0.00019178,2]
[373189719,1752899446727,-2378.44,0.00019178,2]
[373189721,1752899446736,-480.0,0.00019178,2]
[373189723,1752899446745,-480.0,0.00019178,2]
[373189725,1752899446755,-287.79032372,0.00019178,2]
[373189727,1752899446764,-575.83,0.00019178,2]
[373189729,1752899446773,-480.0,0.00019178,2]
[373189731,1752899446782,-480.0,0.00019178,2]
[373189733,1752899446791,-480.0,0.00019178,2]
[373189735,1752899446800,-480.0,0.00019178,2]
[373189737,1752899446809,-481.7807714,0.00019178,2]
[373189739,1752899446819,-480.0,0.00019178,2]
[373189741,1752899446828,-707.24,0.00019178,2]
[373189743,1752899446837,-482.07088648,0.00019178,2]
[373189745,1752899446846,-480.0,0.00019178,2]
[373189747,1752899446855,-1166.9,0.00019178,2]
[373189749,1752899446864,-480.0,0.00019178,2]
[373189751,1752899446873,-524.58,0.00019178,2]
[373189753,1752899446883,-480.0,0.00019178,2]
[373189755,1752899446892,-1134.97,0.00019178,2]
[373189757,1752899446904,-523.31,0.00019178,2]
[373189759,1752899446915,-945.44,0.00019178,2]
[373189760,1752899446924,-151.0,0.00019178,2]
[373189762,1752899446934,-180.453935,0.00019178,2]
[373189764,1752899446943,-480.0,0.00019178,2]
[373189766,1752899446953,-480.0,0.00019178,2]
[373189769,1752899446963,-480.0,0.00019178,2]
[373189770,1752899446972,-785.15,0.00019178,2]
[373189773,1752899446983,-1053.75,0.00019178,2]
[373189775,1752899446993,-1373.09,0.00019178,2]
[373189777,1752899447002,-152.070513,0.00019178,2]
[373189779,1752899447011,-480.0,0.00019178,2]
[373189781,1752899447020,-480.0,0.00019178,2]
[373189783,1752899447030,-500.0,0.00019178,2]
[373189784,1752899447039,-480.0,0.00019178,2]
[373189786,1752899447048,-2774.0,0.00019178,2]
[373189788,1752899447059,-514.57,0.00019178,2]
[373189790,1752899447068,-615.11,0.00019178,2]
[373189792,1752899447077,-460.0,0.00019178,2]
[373189794,1752899447086,-480.0,0.00019178,2]
[373189796,1752899447095,-480.0,0.00019178,2]
[373189798,1752899447105,-779.31,0.00019178,2]
[373189800,1752899447114,-635.56,0.00019178,2]
[373189802,1752899447124,-153.408956,0.00019178,2]
[373189805,1752899447133,-480.0,0.00019178,2]
[373189806,1752899447143,-480.0,0.00019178,2]
[373189809,1752899447154,-523.69,0.00019178,2]
[373189811,1752899447163,-590.66,0.00019178,2]
[373189813,1752899447173,-1528.03,0.00019178,2]
[373189815,1752899447182,-480.0,0.00019178,2]
[373189816,1752899447191,-150.0,0.00019178,2]
[373189818,1752899447200,-526.43,0.00019178,2]
[373189820,1752899447210,-769.69,0.00019178,2]
[373189823,1752899447219,-480.0,0.00019178,2]
[373189824,1752899447229,-480.0,0.00019178,2]
[373189826,1752899447238,-150.0,0.00019178,2]
[373189829,1752899447248,-151.21151,0.00019178,2]
[373189831,1752899447257,-150.0,0.00019178,2]
[373189832,1752899447268,-480.0,0.00019178,2]
[373189835,1752899447279,-1688.12,0.00019178,2]
[373189837,1752899447290,-1721.15,0.00019178,2]
[373189839,1752899447303,-151.0,0.00019178,2]
[373189840,1752899447312,-235.756906,0.00019178,2]
[373189843,1752899447322,-480.0,0.00019178,2]
[373189844,1752899447331,-480.0,0.00019178,2]
[373189846,1752899447339,-150.0,0.00019178,2]
[373189848,1752899447349,-1079.74,0.00019178,2]
[373189850,1752899447358,-3035.0,0.00019178,2]
[373189852,1752899447367,-152.34,0.00019178,2]
[373189854,1752899447377,-172.7,0.00019178,2]
[373189856,1752899447386,-15324.3701235,0.00019178,2]
[373189858,1752899447395,-5000.0,0.00019187,2]
[373189860,1752899447405,-168.0,0.00019188,2]
[373189862,1752899447414,-151.0,0.00019195,2]
[373189864,1752899447423,-151.0,0.00019195,2]
[373189866,1752899447432,-166.732244,0.00019195,2]
[373189869,1752899447442,-166.732244,0.00019195,2]
[373189871,1752899447451,-213.44201,0.00019195,2]
[373189873,1752899447460,-213.44201,0.00019195,2]
[373189875,1752899447469,-500.0,0.00019195,2]
[373189876,1752899447479,-421.9545403,0.00019195,2]
[373189879,1752899447488,-279.49852394,0.00019195,2]
[373189881,1752899447498,-167.12774969,0.00019195,2]
[373189882,1752899447508,-397.28876054,0.00019195,2]
[373189884,1752899447517,-500.0,0.00019195,2]
[373189886,1752899447526,-158.019723,0.00019196,2]
[373189888,1752899447536,-168.87094,0.00019196,2]
[373189890,1752899447546,-151.0,0.00019196,2]
[373189892,1752899447557,-151.0,0.00019196,2]
[373189894,1752899447567,-151.0,0.00019196,2]
[373189896,1752899447576,-151.0,0.00019196,2]
[373189898,1752899447586,-151.0,0.00019196,2]
[373189900,1752899447595,-151.0,0.00019196,2]
[373189902,1752899447604,-151.0,0.00019196,2]
[373189904,1752899447614,-240.982405,0.00019196,2]
[373189906,1752899447623,-151.0,0.00019196,2]
[373189908,1752899447632,-158.296229,0.00019196,2]
[373189910,1752899447642,-151.0,0.00019196,2]
[373189912,1752899447651,-151.0,0.00019196,2]
[373189914,1752899447660,-151.0,0.00019196,2]
[373189916,1752899447670,-84072.9307128,0.00019196,2]
[373189918,1752899447679,-166.732244,0.00019196,2]
[373189920,1752899447688,-166.732244,0.00019196,2]
[373189922,1752899447697,-213.44201,0.00019196,2]
[373189924,1752899447706,-213.44201,0.00019196,2]
[373189926,1752899447715,-5195.0317411,0.00019196,2]
[373189928,1752899447724,-13741.6177316,0.00019196,2]
[373189930,1752899447734,-254.31489085,0.00019199,2]
[373189932,1752899447743,-462.80531044,0.00019199,2]
[373189934,1752899447752,-480.0,0.00019199,2]
[373189936,1752899447762,-268.651846,0.00019199,2]
[373189938,1752899447771,-170.9684303,0.00019199,2]
[373189940,1752899447780,-151.504843,0.00019199,2]
[373189942,1752899447789,-480.0,0.00019199,2]
[373189944,1752899447799,-480.0,0.00019199,2]
[373189946,1752899447809,-480.0,0.00019199,2]
[373189948,1752899447818,-480.0,0.00019199,2]
[373189950,1752899447828,-495.19730115,0.00019199,2]
[373189952,1752899447838,-492.80625939,0.00019199,2]
[373189955,1752899447847,-492.7992113,0.00019199,2]
[373189957,1752899447857,-490.1216798,0.00019199,2]
[373189959,1752899447866,-498.61892096,0.00019199,2]
[373189961,1752899447875,-498.90917502,0.00019199,2]
[373189962,1752899447885,-480.0,0.00019199,2]
[373189964,1752899447894,-216.46941332,0.00019199,2]
[373189966,1752899447909,-480.0,0.00019199,2]
[373189968,1752899447919,-866.88,0.00019199,2]
[373189970,1752899447928,-480.0,0.00019199,2]
[373189972,1752899447938,-480.0,0.00019199,2]
[373189974,1752899447947,-480.0,0.00019199,2]
[373189976,1752899447957,-480.0,0.00019199,2]
[373189978,1752899447967,-1377.22,0.00019199,2]
[373189980,1752899447976,-678.29,0.00019199,2]
[373189982,1752899447986,-480.0,0.00019199,2]
[373189984,1752899447995,-480.0,0.00019199,2]
[373189986,1752899448004,-480.0,0.00019199,2]
[373189988,1752899448014,-480.0,0.00019199,2]
[373189990,1752899448023,-1115.01,0.00019199,2]
[373189992,1752899448032,-480.0,0.00019199,2]
[373189994,1752899448041,-480.0,0.00019199,2]
[373189996,1752899448051,-513.73,0.00019199,2]
[373189998,1752899448060,-20000.0,0.00019204,2]
[373190000,1752899448069,-151.0,0.00019207,2]
[373190002,1752899448079,-355.0,0.0001921,2]
[373190004,1752899448088,-8933.65,0.0001921,2]
[373190006,1752899448097,-11099.59876311,0.00019211,2]
[373190008,1752899448108,-168.0,0.00019213,2]
[373190010,1752899448118,-168.0,0.00019225,2]
[373190012,1752899448127,-168.0,0.00019228,2]
[373190014,1752899448137,-256.62,0.00019233,2]
[373190016,1752899448146,-168.0,0.00019246,2]
[373190018,1752899448155,-408.74209246,0.00019263,2]